[Event "*** SCC Grand Prix: Titled Tuesday Blitz"]
[Site "Chess.com"]
[Date "2020.10.13"]
[Round "5"]
[White "Ramu_K_FM_FT"]
[Black "MF1966Idrisov"]
[Result "1-0"]
[WhiteElo "2111"]
[BlackElo "2331"]
[TimeControl "180+1"]
[EndTime "10:56:01 PDT"]
[Termination "Ramu_K_FM_FT won on time"]

1. e4 {[%clk 0:03:00.5]} 1... d5 {[%clk 0:02:53.7]} 2. exd5 {[%clk 0:02:59.8]}
2... Qxd5 {[%clk 0:02:52.8]} 3. Nc3 {[%clk 0:03:00]} 3... Qd6 {[%clk 0:02:52.9]}
4. Bc4 {[%clk 0:02:57.8]} 4... a6 {[%clk 0:02:52.5]} 5. Bb3 {[%clk 0:02:56.1]}
5... Nf6 {[%clk 0:02:51.4]} 6. d4 {[%clk 0:02:55.2]} 6... Bf5 {[%clk 0:02:48.1]}
7. Nf3 {[%clk 0:02:54.5]} 7... e6 {[%clk 0:02:48.1]} 8. Bg5 {[%clk 0:02:52.1]}
8... Be7 {[%clk 0:02:47.5]} 9. Qe2 {[%clk 0:02:50.5]} 9... O-O {[%clk
0:02:45.6]} 10. h3 {[%clk 0:02:46.5]} 10... Nc6 {[%clk 0:02:37]} 11. O-O-O
{[%clk 0:02:44.2]} 11... Na5 {[%clk 0:02:34.8]} 12. g4 {[%clk 0:02:42.8]} 12...
Nxb3+ {[%clk 0:02:33.1]} 13. axb3 {[%clk 0:02:40.3]} 13... Bg6 {[%clk
0:02:31.1]} 14. Ne5 {[%clk 0:02:34.5]} 14... Nd5 {[%clk 0:01:56.2]} 15. Bxe7
{[%clk 0:02:21.4]} 15... Nxc3 {[%clk 0:01:55.6]} 16. bxc3 {[%clk 0:02:09.4]}
16... Qxe7 {[%clk 0:01:54.7]} 17. Nxg6 {[%clk 0:02:05.7]} 17... Qg5+ {[%clk
0:01:42.1]} 18. f4 {[%clk 0:02:04.3]} 18... Qxg6 {[%clk 0:01:41.9]} 19. f5
{[%clk 0:02:01.2]} 19... exf5 {[%clk 0:01:35.4]} 20. gxf5 {[%clk 0:02:00.6]}
20... Qxf5 {[%clk 0:01:33.2]} 21. Rdf1 {[%clk 0:01:58]} 21... Qa5 {[%clk
0:01:32.3]} 22. Kb2 {[%clk 0:01:53.3]} 22... Rae8 {[%clk 0:01:28.8]} 23. Qd2
{[%clk 0:01:40.1]} 23... c5 {[%clk 0:01:26.3]} 24. d5 {[%clk 0:01:33.7]} 24...
c4 {[%clk 0:01:26.3]} 25. b4 {[%clk 0:01:33]} 25... Qb6 {[%clk 0:01:22.9]} 26.
Rhg1 {[%clk 0:01:23.5]} 26... Qe3 {[%clk 0:01:11.4]} 27. Qg2 {[%clk 0:01:13.3]}
27... g6 {[%clk 0:01:09.2]} 28. Rf3 {[%clk 0:01:07.7]} 28... Qe4 {[%clk
0:01:08.2]} 29. Rd1 {[%clk 0:01:00.2]} 29... Rd8 {[%clk 0:01:06.1]} 30. d6
{[%clk 0:00:43.2]} 30... Rd7 {[%clk 0:01:01.8]} 31. Qg3 {[%clk 0:00:40.6]} 31...
Rfd8 {[%clk 0:00:57.6]} 32. Re3 {[%clk 0:00:38.9]} 32... Qc6 {[%clk 0:00:49.5]}
33. Re7 {[%clk 0:00:28.6]} 33... Rxd6 {[%clk 0:00:47.6]} 34. Qf4 {[%clk
0:00:27.3]} 34... f5 {[%clk 0:00:39.6]} 35. Qe5 {[%clk 0:00:24.4]} 1-0

[Event "*** SCC Grand Prix: Titled Tuesday Blitz"]
[Site "Chess.com"]
[Date "2020.10.13"]
[Round "5"]
[White "Lenyas66"]
[Black "Margarita2907"]
[Result "1-0"]
[WhiteElo "2352"]
[BlackElo "2175"]
[TimeControl "180+1"]
[EndTime "10:56:05 PDT"]
[Termination "Lenyas66 won by resignation"]

1. d4 {[%clk 0:03:00.9]} 1... d5 {[%clk 0:02:58.3]} 2. Bg5 {[%clk 0:03:00.8]}
2... Nf6 {[%clk 0:02:55.1]} 3. Bxf6 {[%clk 0:03:00.1]} 3... exf6 {[%clk
0:02:54.8]} 4. e3 {[%clk 0:03:00.1]} 4... Bd6 {[%clk 0:02:53.3]} 5. c4 {[%clk
0:03:00.1]} 5... c6 {[%clk 0:02:52.3]} 6. Nc3 {[%clk 0:03:00.2]} 6... dxc4
{[%clk 0:02:46.1]} 7. Bxc4 {[%clk 0:02:59.6]} 7... O-O {[%clk 0:02:42.7]} 8. Nf3
{[%clk 0:02:59.8]} 8... Bg4 {[%clk 0:02:39.1]} 9. h3 {[%clk 0:02:51.7]} 9... Bh5
{[%clk 0:02:38.7]} 10. g4 {[%clk 0:02:47.9]} 10... Bg6 {[%clk 0:02:38.5]} 11.
Nh4 {[%clk 0:02:47.2]} 11... Nd7 {[%clk 0:02:26.9]} 12. Nxg6 {[%clk 0:02:46.8]}
12... hxg6 {[%clk 0:02:26.4]} 13. h4 {[%clk 0:02:47.1]} 13... Nb6 {[%clk
0:02:17.6]} 14. Bb3 {[%clk 0:02:46.6]} 14... Qe7 {[%clk 0:02:00.4]} 15. h5
{[%clk 0:02:42.6]} 15... g5 {[%clk 0:01:58.7]} 16. Qf3 {[%clk 0:02:27.5]} 16...
a5 {[%clk 0:01:47.3]} 17. h6 {[%clk 0:02:07.9]} 17... g6 {[%clk 0:01:43.4]} 18.
h7+ {[%clk 0:02:05.1]} 18... Kh8 {[%clk 0:01:42.1]} 19. Ne4 {[%clk 0:02:01.9]}
19... a4 {[%clk 0:01:34.6]} 20. Bc2 {[%clk 0:02:00.5]} 20... Bb4+ {[%clk
0:01:31.8]} 21. Kf1 {[%clk 0:01:59.9]} 21... Nc4 {[%clk 0:01:28.9]} 22. Qxf6+
{[%clk 0:01:47.2]} 22... Qxf6 {[%clk 0:01:27.4]} 23. Nxf6 {[%clk 0:01:47.4]}
23... Nxb2 {[%clk 0:01:20.9]} 24. Rb1 {[%clk 0:01:46.8]} 24... a3 {[%clk
0:01:20.6]} 25. Bb3 {[%clk 0:01:43.3]} 25... Bd6 {[%clk 0:01:11.2]} 26. Ne4
{[%clk 0:01:41.4]} 26... Be7 {[%clk 0:01:09.2]} 27. Kg2 {[%clk 0:01:35.7]} 27...
Nd3 {[%clk 0:01:06.2]} 28. d5 {[%clk 0:01:32]} 28... cxd5 {[%clk 0:00:59]} 29.
Bxd5 {[%clk 0:01:31.5]} 29... Nb4 {[%clk 0:00:59.2]} 30. Bb3 {[%clk 0:01:30.7]}
30... Rad8 {[%clk 0:00:50.4]} 31. Nc3 {[%clk 0:01:24.1]} 31... Rd2 {[%clk
0:00:44.4]} 32. Rbd1 {[%clk 0:01:23.2]} 32... Rfd8 {[%clk 0:00:41.8]} 33. Bxf7
{[%clk 0:01:19.9]} 33... Rxd1 {[%clk 0:00:39.5]} 34. Nxd1 {[%clk 0:01:19.8]}
34... Kg7 {[%clk 0:00:30.1]} 35. Bg8 {[%clk 0:01:18.9]} 35... Kh8 {[%clk
0:00:28.4]} 36. Nc3 {[%clk 0:01:16.8]} 36... Bf6 {[%clk 0:00:27.3]} 37. Ne4
{[%clk 0:01:14.4]} 37... Be7 {[%clk 0:00:24.2]} 38. Rh6 {[%clk 0:01:11.6]} 38...
Rc8 {[%clk 0:00:12.2]} 39. Rxg6 {[%clk 0:01:08.5]} 39... Rc2 {[%clk 0:00:11.1]}
40. Re6 {[%clk 0:01:08]} 40... Bf8 {[%clk 0:00:07]} 41. Re8 {[%clk 0:01:07.6]}
41... Kg7 {[%clk 0:00:06.6]} 42. Rxf8 {[%clk 0:01:06.8]} 42... Nxa2 {[%clk
0:00:03.7]} 43. Bb3 {[%clk 0:00:51.9]} 43... Kxh7 {[%clk 0:00:02.6]} 44. Bxc2
{[%clk 0:00:51.8]} 44... Nb4 {[%clk 0:00:03]} 45. Bb1 {[%clk 0:00:51.9]} 45...
a2 {[%clk 0:00:03.3]} 46. Bxa2 {[%clk 0:00:49.6]} 46... Nxa2 {[%clk 0:00:04.2]}
47. Rf7+ {[%clk 0:00:49.9]} 47... Kg6 {[%clk 0:00:04.5]} 48. Rxb7 {[%clk
0:00:49.9]} 48... Nc1 {[%clk 0:00:04.1]} 49. Rb6+ {[%clk 0:00:49.3]} 49... Kf7
{[%clk 0:00:03.5]} 50. Nxg5+ {[%clk 0:00:49.2]} 50... Kg7 {[%clk 0:00:03.5]} 51.
f4 {[%clk 0:00:49.2]} 1-0

[Event "*** SCC Grand Prix: Titled Tuesday Blitz"]
[Site "Chess.com"]
[Date "2020.10.13"]
[Round "5"]
[White "kuban1991"]
[Black "Hikaru"]
[Result "0-1"]
[WhiteElo "2815"]
[BlackElo "3214"]
[TimeControl "180+1"]
[EndTime "10:56:06 PDT"]
[Termination "Hikaru won by resignation"]

1. Nf3 {[%clk 0:03:00.9]} 1... d5 {[%clk 0:02:58.6]} 2. g3 {[%clk 0:03:01]} 2...
g6 {[%clk 0:02:58.5]} 3. Bg2 {[%clk 0:03:01.2]} 3... Bg7 {[%clk 0:02:59.2]} 4.
d4 {[%clk 0:03:01.8]} 4... Nd7 {[%clk 0:02:58.4]} 5. O-O {[%clk 0:03:01.9]} 5...
Ngf6 {[%clk 0:02:58.7]} 6. Nbd2 {[%clk 0:03:02.1]} 6... Nb6 {[%clk 0:02:58.6]}
7. c4 {[%clk 0:02:55.2]} 7... dxc4 {[%clk 0:02:58.2]} 8. a4 {[%clk 0:02:55.3]}
8... a5 {[%clk 0:02:57.7]} 9. Qc2 {[%clk 0:02:47.8]} 9... Nfd5 {[%clk
0:02:57.3]} 10. Nxc4 {[%clk 0:02:25.5]} 10... Nb4 {[%clk 0:02:56.5]} 11. Qc3
{[%clk 0:02:23.7]} 11... Nxc4 {[%clk 0:02:44.2]} 12. Qxc4 {[%clk 0:02:23]} 12...
Be6 {[%clk 0:02:44.8]} 13. Qc3 {[%clk 0:02:11.3]} 13... O-O {[%clk 0:02:23.7]}
14. Ne5 {[%clk 0:01:41.8]} 14... c6 {[%clk 0:02:00.8]} 15. e4 {[%clk 0:01:40.7]}
15... Rc8 {[%clk 0:01:38.2]} 16. Be3 {[%clk 0:01:30.9]} 16... c5 {[%clk
0:01:36.1]} 17. dxc5 {[%clk 0:01:25.4]} 17... Na2 {[%clk 0:01:18]} 18. Rxa2
{[%clk 0:00:55.6]} 18... Bxa2 {[%clk 0:01:18.9]} 19. f4 {[%clk 0:00:55.7]} 19...
Be6 {[%clk 0:00:56.8]} 20. f5 {[%clk 0:00:34.4]} 20... Qc7 {[%clk 0:00:56.1]}
21. fxe6 {[%clk 0:00:31]} 21... Qxe5 {[%clk 0:00:42.5]} 22. exf7+ {[%clk
0:00:29.5]} 22... Rxf7 {[%clk 0:00:42.7]} 23. Qc4 {[%clk 0:00:28.8]} 23... e6
{[%clk 0:00:41.6]} 24. Rd1 {[%clk 0:00:20]} 24... Bf8 {[%clk 0:00:36.4]} 25. Bh3
{[%clk 0:00:18.4]} 25... Bxc5 {[%clk 0:00:35.3]} 26. Bxc5 {[%clk 0:00:17.1]}
26... Rxc5 {[%clk 0:00:36.2]} 27. Qxe6 {[%clk 0:00:16.4]} 27... Kg7 {[%clk
0:00:36.1]} 28. Qxe5+ {[%clk 0:00:07.5]} 28... Rxe5 {[%clk 0:00:37]} 29. Bg2
{[%clk 0:00:06.6]} 29... Rc5 {[%clk 0:00:37.2]} 30. Bf1 {[%clk 0:00:02.4]} 30...
Re7 {[%clk 0:00:28.7]} 31. Re1 {[%clk 0:00:01.4]} 31... Rc2 {[%clk 0:00:26.7]}
32. b3 {[%clk 0:00:01.4]} 32... Kf6 {[%clk 0:00:27.3]} 33. Bc4 {[%clk
0:00:01.6]} 33... Ke5 {[%clk 0:00:27.9]} 34. Bd5 {[%clk 0:00:02.3]} 34... Rec7
{[%clk 0:00:27.6]} 35. Rf1 {[%clk 0:00:02.7]} 35... Rc1 {[%clk 0:00:27.7]} 36.
Kf2 {[%clk 0:00:03]} 36... R7c2+ {[%clk 0:00:27.3]} 37. Kg1 {[%clk 0:00:03.2]}
37... Rxf1+ {[%clk 0:00:26.8]} 38. Kxf1 {[%clk 0:00:04.1]} 38... Rxh2 {[%clk
0:00:26.3]} 39. Bxb7 {[%clk 0:00:04.4]} 39... Rb2 {[%clk 0:00:26.7]} 40. Bd5
{[%clk 0:00:04.8]} 40... g5 {[%clk 0:00:24.7]} 41. Kg1 {[%clk 0:00:05.3]} 41...
h5 {[%clk 0:00:24.1]} 42. Kf1 {[%clk 0:00:05.8]} 42... h4 {[%clk 0:00:24.5]} 43.
gxh4 {[%clk 0:00:06.7]} 43... gxh4 {[%clk 0:00:25.3]} 44. Kg1 {[%clk 0:00:07.1]}
44... Kf4 {[%clk 0:00:26]} 0-1

[Event "*** SCC Grand Prix: Titled Tuesday Blitz"]
[Site "Chess.com"]
[Date "2020.10.13"]
[Round "5"]
[White "catzapto"]
[Black "ChelsieMonica"]
[Result "0-1"]
[WhiteElo "2160"]
[BlackElo "2376"]
[TimeControl "180+1"]
[EndTime "10:56:06 PDT"]
[Termination "ChelsieMonica won by resignation"]

1. e4 {[%clk 0:03:00.9]} 1... Nc6 {[%clk 0:02:58.5]} 2. Nf3 {[%clk 0:02:57.1]}
2... d5 {[%clk 0:02:56.7]} 3. exd5 {[%clk 0:02:57.1]} 3... Qxd5 {[%clk
0:02:57.6]} 4. Nc3 {[%clk 0:02:57.7]} 4... Qd8 {[%clk 0:02:56.5]} 5. Bc4 {[%clk
0:02:56.3]} 5... Nf6 {[%clk 0:02:57.3]} 6. O-O {[%clk 0:02:55.9]} 6... e6 {[%clk
0:02:56.9]} 7. d4 {[%clk 0:02:54.4]} 7... Be7 {[%clk 0:02:56.1]} 8. Re1 {[%clk
0:02:48.3]} 8... O-O {[%clk 0:02:56.1]} 9. Bg5 {[%clk 0:02:45.5]} 9... h6 {[%clk
0:02:55.7]} 10. Bh4 {[%clk 0:02:45.8]} 10... a6 {[%clk 0:02:55]} 11. a4 {[%clk
0:02:44.3]} 11... b6 {[%clk 0:02:49.5]} 12. Bxf6 {[%clk 0:02:38.1]} 12... Bxf6
{[%clk 0:02:50.4]} 13. d5 {[%clk 0:02:39]} 13... exd5 {[%clk 0:02:47.6]} 14.
Qxd5 {[%clk 0:02:30.7]} 14... Bxc3 {[%clk 0:02:36.7]} 15. Qxc6 {[%clk
0:02:01.3]} 15... Bxe1 {[%clk 0:02:07.6]} 16. Qxa8 {[%clk 0:02:00]} 16... Bb4
{[%clk 0:02:05.6]} 17. Qe4 {[%clk 0:01:44.8]} 17... Bd6 {[%clk 0:02:00.1]} 18.
Re1 {[%clk 0:01:34.5]} 18... a5 {[%clk 0:01:54.8]} 19. Bd3 {[%clk 0:01:34.7]}
19... f5 {[%clk 0:01:52.5]} 20. Qh4 {[%clk 0:01:16.9]} 20... Bd7 {[%clk
0:01:45.7]} 21. Qxd8 {[%clk 0:01:02.2]} 21... Rxd8 {[%clk 0:01:45.3]} 22. b3
{[%clk 0:00:56.2]} 22... Kf7 {[%clk 0:01:44.1]} 23. Nd4 {[%clk 0:00:54.5]} 23...
g6 {[%clk 0:01:42.9]} 24. Bc4+ {[%clk 0:00:52.6]} 24... Kf6 {[%clk 0:01:42.3]}
25. Nb5 {[%clk 0:00:45.9]} 25... Be5 {[%clk 0:01:03.5]} 26. Rd1 {[%clk
0:00:36.8]} 26... f4 {[%clk 0:00:53.1]} 27. Na7 {[%clk 0:00:18.3]} 27... Ke7
{[%clk 0:00:53.3]} 28. Bb5 {[%clk 0:00:13.3]} 28... Bxb5 {[%clk 0:00:52.3]} 29.
Rxd8 {[%clk 0:00:14.2]} 29... Kxd8 {[%clk 0:00:51.4]} 30. Nxb5 {[%clk
0:00:14.8]} 30... Kd7 {[%clk 0:00:50.9]} 31. c3 {[%clk 0:00:14.1]} 31... c6
{[%clk 0:00:50.1]} 32. Nd4 {[%clk 0:00:14.5]} 32... Bxd4 {[%clk 0:00:49.1]} 33.
cxd4 {[%clk 0:00:14.5]} 33... Ke6 {[%clk 0:00:50]} 34. Kf1 {[%clk 0:00:11.1]}
34... Kd5 {[%clk 0:00:50.1]} 35. Ke2 {[%clk 0:00:11.4]} 35... Kxd4 {[%clk
0:00:50.4]} 36. Kf3 {[%clk 0:00:12.3]} 36... Kc3 {[%clk 0:00:50.2]} 37. Kxf4
{[%clk 0:00:12.5]} 37... Kxb3 {[%clk 0:00:50.5]} 38. Ke5 {[%clk 0:00:13.4]}
38... c5 {[%clk 0:00:50.8]} 39. f4 {[%clk 0:00:13.7]} 39... c4 {[%clk
0:00:51.7]} 40. g4 {[%clk 0:00:13]} 40... c3 {[%clk 0:00:52]} 41. f5 {[%clk
0:00:13.9]} 41... gxf5 {[%clk 0:00:51.4]} 42. gxf5 {[%clk 0:00:13.8]} 42... c2
{[%clk 0:00:51.5]} 43. f6 {[%clk 0:00:14.7]} 43... c1=Q {[%clk 0:00:52]} 44. f7
{[%clk 0:00:14.6]} 44... Qc8 {[%clk 0:00:51]} 45. Kf6 {[%clk 0:00:14.8]} 45...
Qf8 {[%clk 0:00:51.9]} 46. Kg6 {[%clk 0:00:14.5]} 46... Kxa4 {[%clk 0:00:52.8]}
47. h4 {[%clk 0:00:14.8]} 47... Kb3 {[%clk 0:00:53.7]} 48. h5 {[%clk 0:00:15.7]}
48... a4 {[%clk 0:00:54.6]} 49. Kh7 {[%clk 0:00:14.7]} 49... a3 {[%clk
0:00:55.5]} 50. Kg6 {[%clk 0:00:14.8]} 50... a2 {[%clk 0:00:55.8]} 51. Kf6
{[%clk 0:00:15.7]} 51... a1=Q+ {[%clk 0:00:56]} 52. Kg6 {[%clk 0:00:16.6]} 52...
Qb1+ {[%clk 0:00:55.7]} 53. Kf6 {[%clk 0:00:14.3]} 53... Qb2+ {[%clk 0:00:55.7]}
54. Ke6 {[%clk 0:00:15.2]} 54... Qe2+ {[%clk 0:00:55.2]} 55. Kd7 {[%clk
0:00:16.1]} 55... Qb5+ {[%clk 0:00:54.6]} 56. Kc7 {[%clk 0:00:16.1]} 56... Qxf7+
{[%clk 0:00:54.1]} 57. Kb8 {[%clk 0:00:15.4]} 0-1

[Event "*** SCC Grand Prix: Titled Tuesday Blitz"]
[Site "Chess.com"]
[Date "2020.10.13"]
[Round "5"]
[White "Cocaino74"]
[Black "Jungle_Jaguar"]
[Result "1-0"]
[WhiteElo "2396"]
[BlackElo "2610"]
[TimeControl "180+1"]
[EndTime "10:56:07 PDT"]
[Termination "Cocaino74 won by resignation"]

1. e4 {[%clk 0:02:48.3]} 1... c5 {[%clk 0:02:58.8]} 2. Nf3 {[%clk 0:02:48.3]}
2... d6 {[%clk 0:02:58.6]} 3. Bb5+ {[%clk 0:02:48.8]} 3... Nd7 {[%clk
0:02:56.6]} 4. O-O {[%clk 0:02:48.4]} 4... a6 {[%clk 0:02:54.3]} 5. Bd3 {[%clk
0:02:48.2]} 5... Ngf6 {[%clk 0:02:52.2]} 6. c3 {[%clk 0:02:48.5]} 6... g6 {[%clk
0:02:51.2]} 7. Bc2 {[%clk 0:02:46.7]} 7... Bg7 {[%clk 0:02:50]} 8. d4 {[%clk
0:02:47.4]} 8... O-O {[%clk 0:02:38.4]} 9. h3 {[%clk 0:02:39.1]} 9... b5 {[%clk
0:02:27.6]} 10. a4 {[%clk 0:02:32.1]} 10... Bb7 {[%clk 0:02:25.6]} 11. Qe2
{[%clk 0:02:26.4]} 11... c4 {[%clk 0:01:52.9]} 12. Bf4 {[%clk 0:01:45.3]} 12...
Qb6 {[%clk 0:01:45.4]} 13. Nbd2 {[%clk 0:01:40.5]} 13... Nh5 {[%clk 0:01:39.5]}
14. Be3 {[%clk 0:01:38.1]} 14... Qc7 {[%clk 0:01:37]} 15. b3 {[%clk 0:01:14.2]}
15... cxb3 {[%clk 0:00:55.3]} 16. Bxb3 {[%clk 0:01:15.1]} 16... Qxc3 {[%clk
0:00:55.6]} 17. Rfc1 {[%clk 0:01:09.5]} 17... Qb4 {[%clk 0:00:55.7]} 18. Rab1
{[%clk 0:00:59.9]} 18... Qa5 {[%clk 0:00:55.5]} 19. Ba2 {[%clk 0:00:19.5]} 19...
Rfc8 {[%clk 0:00:52.5]} 20. Nb3 {[%clk 0:00:12.5]} 20... Qxa4 {[%clk 0:00:51.6]}
21. Rxc8+ {[%clk 0:00:06.5]} 21... Rxc8 {[%clk 0:00:50.9]} 22. Ra1 {[%clk
0:00:07.1]} 22... e6 {[%clk 0:00:39.6]} 23. Nfd2 {[%clk 0:00:06.1]} 23... Rc2
{[%clk 0:00:36]} 24. Bb1 {[%clk 0:00:03.8]} 24... Rc1+ {[%clk 0:00:36.1]} 25.
Kh2 {[%clk 0:00:02.7]} 25... Qb4 {[%clk 0:00:35.6]} 26. Nxc1 {[%clk 0:00:02.8]}
26... Qb2 {[%clk 0:00:36.2]} 27. Ra2 {[%clk 0:00:01.8]} 27... Qxc1 {[%clk
0:00:36.3]} 28. Rc2 {[%clk 0:00:02.6]} 28... Qa3 {[%clk 0:00:35.5]} 29. Rc7
{[%clk 0:00:03.3]} 29... e5 {[%clk 0:00:18]} 30. Rxd7 {[%clk 0:00:03.2]} 30...
exd4 {[%clk 0:00:18]} 31. Rd8+ {[%clk 0:00:03.3]} 31... Bf8 {[%clk 0:00:17.2]}
32. Bh6 {[%clk 0:00:04]} 32... Ng7 {[%clk 0:00:17.7]} 33. Qf3 {[%clk 0:00:03.8]}
33... Qb4 {[%clk 0:00:13.9]} 34. Qf6 {[%clk 0:00:03.7]} 1-0

[Event "*** SCC Grand Prix: Titled Tuesday Blitz"]
[Site "Chess.com"]
[Date "2020.10.13"]
[Round "5"]
[White "Zkid"]
[Black "LiemLe"]
[Result "0-1"]
[WhiteElo "2812"]
[BlackElo "2985"]
[TimeControl "180+1"]
[EndTime "10:56:08 PDT"]
[Termination "LiemLe won by resignation"]

1. e4 {[%clk 0:03:00.9]} 1... c5 {[%clk 0:02:59.8]} 2. Nf3 {[%clk 0:03:00.5]}
2... Nc6 {[%clk 0:03:00.2]} 3. Bb5 {[%clk 0:02:59.9]} 3... g6 {[%clk 0:03:00]}
4. Bxc6 {[%clk 0:03:00]} 4... dxc6 {[%clk 0:03:00.6]} 5. d3 {[%clk 0:02:59.2]}
5... Bg7 {[%clk 0:02:58.2]} 6. h3 {[%clk 0:02:58.7]} 6... e5 {[%clk 0:02:57.8]}
7. Be3 {[%clk 0:02:53.2]} 7... b6 {[%clk 0:02:57.3]} 8. Nbd2 {[%clk 0:02:50.4]}
8... Qc7 {[%clk 0:02:56.8]} 9. a4 {[%clk 0:02:47.6]} 9... a5 {[%clk 0:02:55.7]}
10. Nc4 {[%clk 0:02:46.1]} 10... Be6 {[%clk 0:02:55.6]} 11. Nfd2 {[%clk
0:02:45.9]} 11... Nf6 {[%clk 0:02:37.7]} 12. b4 {[%clk 0:02:29.4]} 12... axb4
{[%clk 0:02:26.8]} 13. a5 {[%clk 0:02:29]} 13... b5 {[%clk 0:02:05.3]} 14. Nb6
{[%clk 0:02:28.3]} 14... Ra6 {[%clk 0:02:05.8]} 15. Bxc5 {[%clk 0:02:26.3]}
15... Bf8 {[%clk 0:02:06.1]} 16. Nb3 {[%clk 0:01:45.5]} 16... Bxb3 {[%clk
0:02:03.4]} 17. Bxf8 {[%clk 0:01:45.5]} 17... Kxf8 {[%clk 0:01:57]} 18. cxb3
{[%clk 0:01:45.1]} 18... Kg7 {[%clk 0:01:57.5]} 19. Qd2 {[%clk 0:01:42]} 19...
Qxb6 {[%clk 0:01:49.3]} 20. axb6 {[%clk 0:01:41.5]} 20... Rxa1+ {[%clk
0:01:50.2]} 21. Ke2 {[%clk 0:01:41.9]} 21... Rxh1 {[%clk 0:01:50.8]} 22. Qxb4
{[%clk 0:01:37.6]} 22... Ra1 {[%clk 0:01:31.4]} 23. Qd6 {[%clk 0:01:29.8]} 23...
Raa8 {[%clk 0:01:27.5]} 24. Qxe5 {[%clk 0:01:25.9]} 24... Rhe8 {[%clk
0:01:24.7]} 25. Qc3 {[%clk 0:01:21.2]} 25... Re6 {[%clk 0:01:23.4]} 26. Qd4
{[%clk 0:01:04.4]} 26... Rb8 {[%clk 0:01:20.3]} 27. f4 {[%clk 0:00:59.8]} 27...
Kg8 {[%clk 0:01:01.4]} 28. Kf3 {[%clk 0:00:55.8]} 28... Rb7 {[%clk 0:00:45.6]}
29. f5 {[%clk 0:00:42.2]} 29... Rd7 {[%clk 0:00:24]} 30. Qc5 {[%clk 0:00:20.5]}
30... Red6 {[%clk 0:00:20.4]} 31. b7 {[%clk 0:00:17.5]} 31... Rxd3+ {[%clk
0:00:20.5]} 32. Ke2 {[%clk 0:00:17.9]} 32... Rd2+ {[%clk 0:00:20.9]} 33. Ke1
{[%clk 0:00:18.1]} 33... Rd1+ {[%clk 0:00:15.5]} 34. Ke2 {[%clk 0:00:18.4]}
34... R1d2+ {[%clk 0:00:16.2]} 35. Ke1 {[%clk 0:00:18.6]} 35... Rxb7 {[%clk
0:00:16.9]} 36. Qxc6 {[%clk 0:00:17.3]} 36... Rbd7 {[%clk 0:00:16.4]} 37. Qxf6
{[%clk 0:00:17.1]} 37... Ra2 {[%clk 0:00:14.8]} 38. Qe5 {[%clk 0:00:14.9]} 38...
Rd8 {[%clk 0:00:13.4]} 39. f6 {[%clk 0:00:13.6]} 39... Rc8 {[%clk 0:00:13.5]}
40. Kd1 {[%clk 0:00:13.1]} 40... Rxg2 {[%clk 0:00:12.7]} 41. Qf4 {[%clk
0:00:11.4]} 41... Ra8 {[%clk 0:00:12]} 42. Qe5 {[%clk 0:00:04.8]} 42... Ra1+
{[%clk 0:00:12.5]} 0-1

[Event "*** SCC Grand Prix: Titled Tuesday Blitz"]
[Site "Chess.com"]
[Date "2020.10.13"]
[Round "5"]
[White "NikolaGry"]
[Black "vladislavkovalev"]
[Result "1/2-1/2"]
[WhiteElo "2635"]
[BlackElo "2851"]
[TimeControl "180+1"]
[EndTime "10:56:10 PDT"]
[Termination "Game drawn - insufficient material"]

1. b3 {[%clk 0:03:00.9]} 1... e5 {[%clk 0:02:56]} 2. Bb2 {[%clk 0:03:01]} 2...
Nc6 {[%clk 0:02:56.8]} 3. c4 {[%clk 0:03:01.3]} 3... Nf6 {[%clk 0:02:56.7]} 4.
e3 {[%clk 0:03:01.3]} 4... g6 {[%clk 0:02:56.7]} 5. Nf3 {[%clk 0:03:00.7]} 5...
Bg7 {[%clk 0:02:57.2]} 6. d4 {[%clk 0:03:00.7]} 6... exd4 {[%clk 0:02:57.2]} 7.
Nxd4 {[%clk 0:03:00.6]} 7... O-O {[%clk 0:02:56.8]} 8. Be2 {[%clk 0:03:00.7]}
8... Re8 {[%clk 0:02:53.9]} 9. O-O {[%clk 0:02:59.2]} 9... Ne4 {[%clk
0:02:50.5]} 10. Nxc6 {[%clk 0:02:38.1]} 10... dxc6 {[%clk 0:02:49.7]} 11. Bxg7
{[%clk 0:02:36.9]} 11... Kxg7 {[%clk 0:02:47.7]} 12. Qxd8 {[%clk 0:02:25.9]}
12... Rxd8 {[%clk 0:02:48.6]} 13. f3 {[%clk 0:02:24.2]} 13... Nc5 {[%clk
0:02:46.6]} 14. Nc3 {[%clk 0:02:20.9]} 14... a5 {[%clk 0:02:45]} 15. Rfd1 {[%clk
0:02:18.6]} 15... Be6 {[%clk 0:02:43.2]} 16. Kf2 {[%clk 0:02:11.1]} 16... Kf6
{[%clk 0:02:39.8]} 17. Rxd8 {[%clk 0:01:57.6]} 17... Rxd8 {[%clk 0:02:40.7]} 18.
Rd1 {[%clk 0:01:56.4]} 18... Ra8 {[%clk 0:02:41.4]} 19. h4 {[%clk 0:01:53.4]}
19... Ke7 {[%clk 0:02:31.3]} 20. g4 {[%clk 0:01:50.2]} 20... h6 {[%clk 0:02:29]}
21. f4 {[%clk 0:01:43.7]} 21... Rh8 {[%clk 0:02:21.1]} 22. e4 {[%clk 0:01:31]}
22... f6 {[%clk 0:02:12.1]} 23. f5 {[%clk 0:01:22.3]} 23... Bf7 {[%clk
0:02:09.7]} 24. fxg6 {[%clk 0:00:54.4]} 24... Bxg6 {[%clk 0:02:10.6]} 25. Ke3
{[%clk 0:00:48.6]} 25... Nd7 {[%clk 0:02:05.5]} 26. Bf3 {[%clk 0:00:41.6]} 26...
Ne5 {[%clk 0:02:01.3]} 27. Ne2 {[%clk 0:00:41.4]} 27... a4 {[%clk 0:01:56.8]}
28. Ng3 {[%clk 0:00:28.6]} 28... axb3 {[%clk 0:01:52.8]} 29. axb3 {[%clk
0:00:26]} 29... Ra8 {[%clk 0:01:53.2]} 30. Kf4 {[%clk 0:00:20.5]} 30... Ra3
{[%clk 0:01:49.6]} 31. Rb1 {[%clk 0:00:20.2]} 31... Nd3+ {[%clk 0:01:42.2]} 32.
Ke3 {[%clk 0:00:18.6]} 32... Nc5 {[%clk 0:01:43.1]} 33. Bd1 {[%clk 0:00:18.3]}
33... b5 {[%clk 0:01:38.6]} 34. cxb5 {[%clk 0:00:17]} 34... cxb5 {[%clk
0:01:39.5]} 35. Nf5+ {[%clk 0:00:17.3]} 35... Bxf5 {[%clk 0:01:35.6]} 36. exf5
{[%clk 0:00:17.4]} 36... Kd6 {[%clk 0:01:31.8]} 37. Kf4 {[%clk 0:00:15.6]} 37...
Nd3+ {[%clk 0:01:27.4]} 38. Ke3 {[%clk 0:00:15.7]} 38... Ne5 {[%clk 0:01:23.1]}
39. Kf4 {[%clk 0:00:15.9]} 39... Ra2 {[%clk 0:01:21.1]} 40. g5 {[%clk
0:00:10.9]} 40... hxg5+ {[%clk 0:01:15.9]} 41. hxg5 {[%clk 0:00:11]} 41... Rf2+
{[%clk 0:01:16.6]} 42. Ke4 {[%clk 0:00:11.1]} 42... Rxf5 {[%clk 0:01:17.3]} 43.
Kxf5 {[%clk 0:00:10.2]} 43... fxg5 {[%clk 0:01:15.6]} 44. Be2 {[%clk 0:00:10]}
44... Nc6 {[%clk 0:01:09.8]} 45. Rd1+ {[%clk 0:00:08.1]} 45... Kc5 {[%clk
0:01:10.1]} 46. Rc1+ {[%clk 0:00:08.3]} 46... Kb6 {[%clk 0:01:07.2]} 47. Kxg5
{[%clk 0:00:08.6]} 47... Nd4 {[%clk 0:01:07.6]} 48. Bd1 {[%clk 0:00:09.1]} 48...
c5 {[%clk 0:01:01]} 49. Kf4 {[%clk 0:00:09.3]} 49... Ka5 {[%clk 0:00:58.9]} 50.
Rxc5 {[%clk 0:00:07.7]} 50... Ne6+ {[%clk 0:00:55.5]} 51. Ke5 {[%clk 0:00:07.5]}
51... Nxc5 {[%clk 0:00:56.2]} 52. Kd5 {[%clk 0:00:07]} 52... Kb4 {[%clk
0:00:51.6]} 53. Be2 {[%clk 0:00:06.8]} 53... Nxb3 {[%clk 0:00:47]} 54. Bxb5
{[%clk 0:00:06.8]} 1/2-1/2